Cogmind - Beta 17 @@@ ROGUE MODE // 2026.06.23 @ 20:55:23 Player: OBLIQUE Result: Destroyed by Y-45 Defender with Beam Rifle Performance ------------- Evolutions (1) 500 Regions Visited (2) 400 Robots Destroyed (14) 70 Value Destroyed (247) 247 Prototype IDs (4) 80 Alien Tech Used (0) 0 Bonus (0) 0 TOTAL SCORE: 1297 Bonus ------- None Cogmind --------- Core Integrity 0/400 Matter 186/300 Energy 87/100 System Corruption 0% Temperature Cool (9) Movement Treading (160) Location -9/Materials Parts ------- > --- POWER (1) -------- (None) > --- PROPULSION (3) --- Light Treads Aluminum Leg > --- UTILITY (3) ------ Light Armor Plating Hacking Suite > --- WEAPON (2) ------- Light Assault Rifle Hammer > --- INVENTORY (5) ---- Light Ion Engine Light Ion Engine Peak State ------------ > --- POWER ------------ Ion Engine > --- PROPULSION ------- Hover Unit Hover Unit Hover Unit > --- UTILITY ---------- Small Storage Unit Targeting Computer Hacking Suite > --- WEAPON ----------- Hammer > --- INVENTORY -------- Light Ion Engine Light Ion Engine Hover Unit Hover Unit [Rating: 10] Favorites ----------- Power Ion Engine Engine Ion Engine Propulsion Hover Unit Treads Light Treads Leg Aluminum Leg Wheel Wheel Hover Unit Hover Unit Utility Small Storage Unit Storage Small Storage Unit Processor Targeting Computer Hackware Hacking Suite Protection Weapon Shielding Weapon Light Assault Rifle Energy Gun EM Pulse Gun Ballistic Gun Light Assault Rifle Impact Weapon Hammer Build | -11 -10 -9 ------- Run | Yrd Mat Mat Slots Evolved 2 | . . 2 Power . | . . . Propulsion 1 | . . 1 Utility 1 | . . 1 Weapon . | . . . Parts Attached 26 | 9 5 12 Power 1 | 1 . . Engine 1 | 1 . . Core . | . . . Reactor . | . . . Propulsion 13 | 4 3 6 Treads 3 | 2 . 1 Leg 1 | . . 1 Wheel 2 | 2 . . Hover 7 | . 3 4 Flight . | . . . Utility 5 | 1 2 2 Device . | . . . Storage 1 | 1 . . Processor 1 | . 1 . Hackware 1 | . . 1 Protection 2 | . 1 1 Artifact . | . . . Weapon 7 | 3 . 4 Energy Gun 1 | 1 . . Energy Cannon . | . . . Ballistic Gun 5 | 2 . 3 Ballistic Cannon . | . . . Launcher . | . . . Special Weapon . | . . . Impact Weapon 1 | . . 1 Slashing Weapon . | . . . Piercing Weapon . | . . . Special Melee Weapon . | . . . Unidentified Prototypes . | . . . Parts Lost 13 | . 2 11 Power 1 | . . 1 Propulsion 7 | . 1 6 Utility 2 | . . 2 Weapon 3 | . 1 2 Highest Loss Streak 9 | . 2 9 To Critical Strikes . | . . . Average Backups 5 | 2 7 3 Power 1 | . 1 2 Propulsion 2 | 1 4 1 Utility . | . . . Weapon . | . 1 . Tool/Special . | . . . Unused Backups 2 | . . 2 Power 2 | . . 2 Propulsion . | . . . Utility . | . . . Weapon . | . . . Tool/Special . | . . . Average Slot Usage (%) 76 | . 81 66 Engine 11 | . 14 7 Treads 5 | . 7 . Hover 19 | . 19 18 Storage 12 | . 14 9 Processor 5 | . 5 6 Hackware 3 | . . 11 Protection 1 | . 1 . Energy Gun 5 | . 8 . Ballistic Gun 7 | . 10 2 Impact Weapon 3 | . . 9 Peak Build Rating 10 | 6 7 10 Average Rating 6 | 4 5 8 On Entrance 4 | . 6 6 Avg Prop Armor Cover (%) . | . . . Naked Turns . | . . . Heaviest Build 13 | 12 13 12 Greatest Support 40 | 40 40 18 Greatest Overweight (x) 4 | . 4 3 Average Overweight (x) . | . . . Largest Inventory Capacity 8 | 8 8 8 Average Capacity 7 | 6 8 7 Most Carried 8 | 4 8 7 Average Carried 5 | 2 7 3 Final Capacity 8 | 8 8 5 Final Carried 8 | 4 8 2 Class Distribution -------------------- 100% | Mutant Dominant Class ---------------- Mutant | -10/Materials Mutant | -9/Materials Resources | -11 -10 -9 ----------- Run | Yrd Mat Mat Matter Collected 369 | 205 150 14 Remotely . | . . . Salvage Created 268 | . 61 207 Parts 31 | . 7 24 Haulers Intercepted . | . . . Recyclers Shooed . | . . . Parts Field Recycled . | . . . Retrieved Matter . | . . . Parts Self-Destructed . | . . . Prevented . | . . . Parts Restored . | . . . Kills | -11 -10 -9 ------- Run | Yrd Mat Mat Combat Hostiles Destroyed 10 | . 1 9 Melee 2 | . . 2 Guns 7 | . . 7 AOE 1 | . 1 . Classes Destroyed 6 | . 4 2 Worker 2 | . 2 . Tunneler 1 | . 1 . Operator 1 | . 1 . Swarmer 6 | . . 6 Grunt 2 | . 1 1 Sentry 2 | . . 2 Best Kill Streak 7 | . 4 7 Combat Bots Only 7 | . 1 7 Max Kills in Single Turn 4 | . 4 1 Gunslinging . | . . . Exploded 1 | . 1 . Melee 1 | . . 1 Uniques/NPCs Destroyed . | . . . Combat | -11 -10 -9 -------- Run | Yrd Mat Mat Hostile Shots Fired 138 | . 11 127 Missed 38 | . 4 34 Hits 100 | . 7 93 Projectile 100 | . 7 93 Critical Strikes 2 | . . 2 Damage Taken 1386 | . 220 1166 Core 473 | . 72 401 Absorbed by Shields . | . . . Core Remaining (%) 85 | 100 71 . Volleys Fired 27 | . 10 17 Largest 1 | . 1 1 Hottest 40 | . 40 23 Shots Fired 27 | . 10 17 Gun 27 | . 10 17 Cannon . | . . . Launcher . | . . . Special . | . . . Kinetic 17 | . . 17 Thermal . | . . . Explosive . | . . . Electromagnetic 10 | . 10 . Robot Hit Streak 10 | . 3 10 Robot Miss Streak 2 | . 2 2 Penetration Max . | . . . Secondary Targets . | . . . Shots Hit Robots 28 | . 6 22 Core Hits 17 | . 4 13 Critical Kills . | . . . Critical Parts Destroyed . | . . . Critical Strikes . | . . . Melee Attacks 15 | . . 15 Impact 15 | . . 15 Slashing . | . . . Piercing . | . . . Sneak Attacks . | . . . Combat Hostiles . | . . . Follow-up Attacks . | . . . Damage Inflicted 919 | . 545 374 Guns 329 | . 103 226 Cannons . | . . . Explosions 442 | . 442 . Melee 148 | . . 148 Ramming . | . . . Kinetic 226 | . . 226 Thermal 41 | . 41 . Explosive 401 | . 401 . Electromagnetic 103 | . 103 . Impact 148 | . . 148 Slashing . | . . . Piercing . | . . . Highest Corruption . | . . . Average Corruption . | . . . Corruption Purged . | . . . Corruption Blocked . | . . . Overload Shots . | . . . Overflow Damage 182 | . 162 20 Projectiles . | . . . Explosions 162 | . 162 . Melee 20 | . . 20 Knockbacks . | . . . Impact . | . . . Kinetic . | . . . Secondary . | . . . Self-Inflicted Damage 116 | . 116 . Shots 2 | . 2 . Rammed . | . . . Targets Rammed . | . . . Kicked . | . . . Crushed . | . . . Highest Temperature 29 | . 29 10 Average Temperature 8 | . 8 8 Received Heat Transfer 396 | . 57 339 Siege Activations . | . . . Martial Activations . | . . . Shielding Activations . | . . . Robots Disrupted . | . . . Combat Hostiles . | . . . Robots Corrupted . | . . . Combat Hostiles . | . . . Parts Fried 2 | . . 2 Impact Corruptions 2 | . . 2 Robots Melted . | . . . Combat Hostiles . | . . . Parts Melted . | . . . Heat Transferred 100 | . 100 . Parts Sabotaged . | . . . Parts Stolen . | . . . Parts Stripped . | . . . Power Chain Reactions 1 | . 1 . Alert | -11 -10 -9 ------- Run | Yrd Mat Mat Maximum Alert Level . | . . . Low Security (%) 100 | 100 100 100 Level 1 . | . . . Level 2 . | . . . Level 3 . | . . . Level 4 . | . . . Level 5 . | . . . High Security . | . . . Max Security . | . . . Peak Influence 165 | . 74 165 Initial 31 | . . 31 Average 20 | . 4 60 Influence Increases 452 | . 139 313 Destroy 0b10 Robot/C 200 | . 20 180 Destroy 0b10 Robot/NC 15 | . 15 . Destroy Leader 30 | . . 30 Successful Hack 51 | . 40 11 Disable Machine 30 | . 30 . Destroy Structure 36 | . 34 2 Lose Combat Pursuer 90 | . . 90 Influence Decreases 287 | . 65 222 Entered New Map 43 | . . 43 Time Decay 125 | . 45 80 Lost Part 109 | . 20 89 Lost Ally 10 | . . 10 Squads Dispatched . | . . . Investigation . | . . . Extermination . | . . . Reinforcement . | . . . Assault . | . . . Garrison . | . . . Intercept . | . . . Searches Triggered . | . . . Construction Impeded . | . . . Haulers Reinforced . | . . . Active Scanning Responses . | . . . Cargo Convoy Interrupts . | . . . Stealth | -11 -10 -9 --------- Run | Yrd Mat Mat Distress Signals 1 | . . 1 Communications Jammed . | . . . Distress Signals . | . . . Times Spotted 23 | . 6 17 Peak Tracking Total 11 | . 3 11 Tactical Retreats 2 | . . 2 Traps | -11 -10 -9 ------- Run | Yrd Mat Mat Traps Triggered . | . . . Indirectly . | . . . Trap Hack Attempts . | . . . Triggered . | . . . Disarmed . | . . . Reprogrammed . | . . . Reused . | . . . Traps Extracted . | . . . Installed . | . . . Triggered . | . . . Machines | -11 -10 -9 ---------- Run | Yrd Mat Mat Machines Disabled 2 | . 2 . Max in Single Turn 1 | . 1 . Machines Repaired . | . . . Machines Dismantled . | . . . Machines Sabotaged . | . . . Overloaded Fab Kills . | . . . Hacking | -11 -10 -9 --------- Run | Yrd Mat Mat Machines Accessed 7 | . 4 3 Terminals 7 | . 4 3 Fabricators . | . . . Repair Stations . | . . . Recycling Units . | . . . Scanalyzers . | . . . Garrison Access . | . . . Total Hacks 29 | . 21 8 Successful 21 | . 15 6 Failed 8 | . 6 2 Catastrophic . | . . . Database Lockouts . | . . . Manual 16 | . 9 7 Terminals 29 | . 21 8 Fabricators . | . . . Repair Stations . | . . . Recycling Units . | . . . Scanalyzers . | . . . Garrison Access . | . . . Terminal Hacks 13 | . 11 2 Robot Analysis 3 | . 2 1 Prototype ID Bank 2 | . 2 . Level Access Points 1 | . 1 . Emergency Access Points 3 | . 3 . Locate Traps 2 | . 2 . Patrol Status 1 | . 1 . Zone Layout 1 | . . 1 Fabricator Hacks . | . . . Repair Station Hacks . | . . . Recycling Unit Hacks . | . . . Scanalyzer . | . . . Garrison Access Hacks . | . . . Unauthorized Hacks 8 | . 4 4 Terminals 8 | . 4 4 Track 2 | . . 2 Assimilate 3 | . 2 1 Botnet 2 | . 1 1 Operators 1 | . 1 . Fabricators . | . . . Repair Stations . | . . . Recycling Units . | . . . Scanalyzers . | . . . Garrison Access . | . . . Data Cores Recovered . | . . . Used . | . . . Hacking Detections 7 | . 4 3 Full Trace Events . | . . . Feedback Events . | . . . Feedback Blocked . | . . . Robot Schematics Acquired . | . . . Robots Built . | . . . Authchips . | . . . Time . | . . . Total Robot Build Rating . | . . . Part Schematics Acquired . | . . . Parts Built . | . . . Authchips . | . . . Time . | . . . Total Part Build Rating . | . . . Part Studies Acquired . | . . . Parts Repaired . | . . . Time . | . . . Parts Recycled . | . . . Recycled Matter . | . . . Retrieved Matter . | . . . Retrieved Components . | . . . Parts Scanalyzed . | . . . Part Schematics Acquired . | . . . Parts Damaged . | . . . Bothacking | -11 -10 -9 ------------ Run | Yrd Mat Mat Used RIF Installer . | . . . Robots Hacked . | . . . Non-combat . | . . . Combat . | . . . Robot Hacks Applied . | . . . Relay Couplers Released . | . . . Fabnet Peak Effective % . | . . . Robots Rewired . | . . . Allies Hacked . | . . . Hacks Repelled . | . . . Allies | -11 -10 -9 -------- Run | Yrd Mat Mat Total Allies 2 | . 1 1 Largest Group 1 | . 1 1 Highest-Rated Group 10 | . 10 10 Highest-Rated Ally 10 | . 10 10 Total Orders . | . . . Ally Attacks . | . . . Total Damage . | . . . Kills . | . . . Allies Corrupted . | . . . Allies Melted . | . . . Intel | -11 -10 -9 ------- Run | Yrd Mat Mat Active Infowar (turns) . | . . . Robot Analysis Total 3 | . 2 1 Derelict Logs Recovered . | . . . Drone Launches . | . . . Drone Recoveries . | . . . Exploration | -11 -10 -9 ------------- Run | Yrd Mat Mat Turns Passed 656 | 86 378 192 Spaces Moved 599 | 54 430 115 Core 9 | 1 2 6 Treads 91 | 35 56 . Legs 2 | . . 2 Wheels 18 | 18 . . Hover 479 | . 372 107 Flight . | . . . Fastest Speed 50 | 50 56 50 Average Speed 75 | 131 71 65 Slowest Speed 250 | 160 250 200 Overloaded Moves . | . . . Propulsion Burnouts . | . . . Robots Hopped . | . . . Potential Cave-ins . | . . . Cave-ins Triggered . | . . . Exploration Rate (%) 27 | 4 63 14 Regions Visited 2 Branch Regions . Pre-discovered Areas . | . . . Known Exits Taken 1 | . 1 . Unknown Exits Taken 1 | 1 . . Scrap Searched . | . . . Spaces Dug 2 | . . 2 Terrain Destroyed 59 | . 57 2 Melee 2 | . . 2 Projectile . | . . . AOE 57 | . 57 . Terrain Rammed . | . . . Walls Destroyed . | . . . Machines Disabled . | . . . Actions | -11 -10 -9 --------- Run | Yrd Mat Mat Total 745 | 66 492 187 Wait 51 | . 24 27 Move 597 | 53 429 115 Hop . | . . . Pick Up 11 | 1 9 1 Fast Attach 20 | 9 6 5 Attach 9 | . 2 7 Detach 5 | 3 2 . Swap . | . . . Drop 10 | . 10 . Fire 27 | . 10 17 Melee 15 | . . 15 Ram . | . . . Kick . | . . . Crush . | . . . Escape Stasis . | . . . Rewire . | . . . Trap . | . . . Miscellaneous . | . . . Route ------- -11/Scrapyard -10/Materials (discovered 3 exits: *Mat x3) -9/Materials History --------- Turn | Location | Event 12 | -11/Scrapyard | Discovered new exit (range 15) 87 | -11/Scrapyard | Entered Materials 234 | -10/Materials | Identified exit to Materials 310 | -10/Materials | Build established: Mutant 465 | -10/Materials | Entered another Materials area 465 | -9/Materials | Evolved 2 slots: Propulsion x1, Utility x1 500 | -9/Materials | Lost 3 parts (2n1w) 619 | -9/Materials | Core integrity fell below 50% 643 | -9/Materials | Core integrity fell below 20% 657 | -9/Materials | Destroyed by Y-45 Defender with Beam Rifle Last Messages --------------- 00608_ S-10 Pest destroyed. 00620_ Acquired Shotgun. 00620_ Critical hit (Burn: +37). 00621_ Shotgun destroyed. 00622_ S-10 Pest destroyed. 00626_ Y-45 Defender destroyed. 00627_ R-06 Scavenger collects Lgt. Assault Rifle. 00631_ R-06 Scavenger collects Lgt. Ion Engine. 00631_ Critical hit (Burn: +37). 00634_ R-06 Scavenger collects Flight Unit. 00634_ Y-45 Defender destroyed. 00634_ Shotgun destroyed. 00636_ Acquired 14 matter. 00638_ Sml. Storage Unit destroyed. 00639_ Acquired Lgt. Assault Rifle. 00644_ G-34 Mercenary destroyed. 00646_ Acquired Lgt. Armor Plating. 00649_ Acquired Aluminum Leg. 00653_ Acquired Lgt. Treads. Map ----- +----------------------------------------------------+ | | | | | | | | | | | ?????????????????????????????????????????????????? | | ?????????????????????????????????????????????????? | | ?????????????????????????????????????????????????? | | ?????????????????????????????????????????????????? | | ?????????????????????????????????????????????????? | | ?????????????????????????????????????????????????? | | ?????????????????????????????????????????????????? | | ?????????????????????????????????????????????????? | | ?????????????????????????????????????????????????? | | ??????????????????????????? ???????????????????? | | ??????????????????????????? #??????????????????? | | ??????????????????????????? #??????????????????? | | ??????????????????????????? #??????????????????? | | ??????????????????????????? #??????????????????? | | ??????????????????????????? #??????????????????? | | ??????????????????????????? #??????????????????? | | ??????????????????????????# #??????????????????? | | ?????????????????????????? #??????????????????? | | ??????????????????????????# +??????????????????? | | ????????????????????????### #??????????????????? | | ??????????????????#######@# #??????????????????? | | ??????????????????# !/# #??????????????????? | | ??????????????????#"" **%Y#= #??????????????????? | | + """ #??????#"T !===+=! #??????????????????? | | #+## """ #??????#""!![=%#%= #??????????????????? | | # #??????# =!=*=# #??????????????????? | | ? "" #?????########## ##?????????????????? | | "" # S"" #?????# # #?????????????????? | | "" # "" #?????# # #?????????????????? | | "" # #?????# + #?????????????????? | | #########?????# # #?????????????????? | | /###?????????????# # #?????????????????? | | ]############### ###+###?????????????????? | | # #???????????????????????? | | t / #???????????????????????? | | # #???????????????????????? | | ########### # #???????????????????????? | | ##??######## # #???????????????????????? | | #???# T # #########???????????????????????? | | #???# +^^^##########/#????????????????????? | | #???# # ???????????????????? | | #???#[! # ???????????????????? | | #???#[! # ???????????????????? | | #???#[ # ########## ????????????????????? | | #??######### # # ??????????????????????????? | +----------------------------------------------------+ Best States ------------- Heat Dissipation 28 Energy Generation 10 Energy Capacity 250 Matter Stores 300 Matter Capacity 300 Sight Range 16 Terrain Scan Density 10 Armor Coverage 150 Weapon Shielding 33 Evasion (%) 54 Targeting Accuracy 5 Recoil Reduction 2 Offensive Hacking 10 Item Schematics ----------------- None Robot Schematics ------------------ None Fabricated ------------ Nothing Repaired ---------- Nothing Studied --------- None Alien Tech Used ----------------- None Achievements -------------- None Challenges ------------ None Game ------ Seed NovaAlertBeacon Manual? 0 Play Time 00:12:44 Cumulative 112.1 hours Start 2026.06.23 @ 15:54:58 End 2026.06.23 @ 20:55:23 Sessions 3 Manual Loads 0 Difficulty Rogue Special Mode None Game No. 66 Rogue 66 Adventurer 0 Explorer 0 Win Type - Total 1 Types 1/0/0/0/0/0/0/0/0/0 Lore% 58 Gallery% 51 Achievement% 45 Wizard Run 0 Options --------- Layout 1 ASCII 0 Keyboard 0 Movement Numpad Keybinds 0 Fullscreen 1 Font 24/Smallcaps Map View 50x35 Zoom Use 0% Tactical HUD 1 Map Filters NONE Filters NONE Steam 1 RUN: d73ad5a1-8526-442c-978d-7fb9b3f05666